bitfinex/quotes_BTCUSD_20241130
["timestamp","ask_amount","ask_price","bid_price","bid_amount"]
[1732949585359,0.10327,96833.0,96832.0,0.0008677]
[1732949585613,0.20611521,96833.0,96832.0,0.0008677]
[1732949586083,0.10284521,96833.0,96832.0,0.0008677]
[1732949586505,0.10284521,96833.0,96832.0,0.0028677]
[1732949586737,0.10384521,96833.0,96832.0,0.0028677]
[1732949588488,0.10484521,96833.0,96832.0,0.0058677]
[1732949590256,0.20811521,96833.0,96832.0,0.0058677]
[1732949592874,0.20711521,96833.0,96832.0,0.0038677]
[1732949593110,0.20611521,96833.0,96832.0,0.0008677]
[1732949593336,0.20711521,96833.0,96832.0,0.0028677]
[1732949593551,0.20811521,96833.0,96832.0,0.0058677]
[1732949593819,0.20711521,96833.0,96832.0,0.0038677]
[1732949594284,0.21711521,96833.0,96832.0,0.0038677]
[1732949594955,0.21811521,96833.0,96832.0,0.0058677]
[1732949595372,0.21711521,96833.0,96832.0,0.0038677]
[1732949595819,0.21711521,96833.0,96832.0,0.0028677]
[1732949596017,0.21811521,96833.0,96832.0,0.0058677]
[1732949596230,0.21711521,96833.0,96832.0,0.0008677]
[1732949596434,0.65524521,96833.0,96822.0,0.0008656]
[1732949596657,0.103281,96823.0,96822.0,0.00098248]
[1732949596865,0.20612621,96823.0,96822.0,0.00098248]
[1732949597733,0.20612621,96823.0,96822.0,0.00398248]
[1732949597949,0.21612621,96823.0,96822.0,0.00398248]
[1732949598175,0.75752621,96823.0,96822.0,0.00398248]
[1732949598460,0.76712531,96823.0,96822.0,0.00598248]
[1732949598883,0.76712531,96823.0,96822.0,0.00398248]
[1732949599093,0.76712531,96823.0,96822.0,0.00298248]
[1732949599322,0.76812531,96823.0,96822.0,0.00598248]
[1732949599530,0.76912531,96823.0,96822.0,0.00598248]
[1732949599740,0.76711813,96823.0,96822.0,0.00098248]
[1732949599951,0.76911813,96823.0,96822.0,0.00598248]
[1732949600388,0.75952621,96823.0,96822.0,0.00598248]
[1732949601034,0.74952621,96823.0,96822.0,0.00598248]
[1732949603113,0.76987066,96823.0,96822.0,0.00598248]
[1732949603784,0.66658966,96823.0,96822.0,0.08478248]
[1732949605362,0.22847066,96823.0,96822.0,0.08478248]
[1732949605820,0.12518966,96823.0,96822.0,0.08478248]
[1732949608326,0.22847066,96823.0,96822.0,0.08478248]
[1732949608989,0.10484521,96823.0,96822.0,0.00598248]
[1732949609219,0.20812621,96823.0,96822.0,0.00598248]
[1732949609441,0.10484521,96823.0,96822.0,0.00598248]
[1732949609580,0.002,96823.0,96822.0,0.13226448]
[1732949609800,0.002,96823.0,96822.0,0.20966448]
[1732949610872,0.001,96823.0,96822.0,0.20666448]
[1732949611119,0.56235713,96838.0,96832.0,0.150871]
[1732949611321,0.10457721,96833.0,96832.0,0.0476]
[1732949611532,0.10457721,96833.0,96832.0,0.0706]
[1732949612393,0.10417721,96833.0,96832.0,0.0726]
[1732949612810,0.10417721,96833.0,96832.0,0.0706]
[1732949612811,0.10317721,96833.0,96832.0,0.0706]
[1732949613675,0.10317721,96833.0,96832.0,0.0796]
[1732949613891,0.10317721,96833.0,96832.0,0.0706]
[1732949614765,0.10417721,96833.0,96832.0,0.0856]
[1732949615028,0.10417721,96833.0,96832.0,0.0766]
[1732949615257,0.103276,96828.0,96823.0,0.023]
[1732949615492,0.10284521,96827.0,96823.0,0.023]
[1732949616164,0.10284521,96827.0,96823.0,0.12628]
[1732949616664,0.10284521,96827.0,96823.0,0.023]
[1732949616916,0.10284521,96827.0,96824.0,0.103279]
[1732949617118,0.10284521,96827.0,96823.0,0.023]
[1732949617340,0.10284521,96827.0,96826.0,0.023]
[1732949617883,0.10284521,96827.0,96825.0,0.023]
[1732949618085,0.10284521,96827.0,96825.0,0.103278]
[1732949618527,0.10284521,96827.0,96823.0,0.023]
[1732949618528,0.10684521,96827.0,96823.0,0.173]
[1732949618723,0.10684521,96827.0,96824.0,0.103279]
[1732949618937,0.10284521,96827.0,96825.0,0.103279]
[1732949619148,0.10284521,96827.0,96826.0,0.023]
[1732949619366,0.10384521,96827.0,96826.0,0.023]
[1732949619810,0.10484521,96827.0,96826.0,0.032]
[1732949620762,0.20812121,96827.0,96826.0,0.032]
[1732949620975,0.10384521,96827.0,96826.0,0.032]
[1732949621215,0.20812121,96827.0,96826.0,0.04]
[1732949621445,0.20812121,96827.0,96826.0,0.017]
[1732949622171,0.20712121,96827.0,96826.0,0.009]
[1732949622599,0.20812121,96827.0,96826.0,0.017]
[1732949622811,0.20712121,96827.0,96826.0,0.008]
[1732949623026,0.20712121,96827.0,96826.0,0.017]
[1732949623236,0.20812121,96827.0,96826.0,0.017]
[1732949623446,0.74852121,96827.0,96826.0,0.008]
[1732949623682,0.75812085,96827.0,96826.0,0.008]
[1732949623942,0.103281,96823.0,96822.0,0.00098248]
[1732949624174,0.20612621,96823.0,96822.0,0.00098248]
[1732949625297,0.20612621,96823.0,96822.0,0.00498248]
[1732949625541,0.21612621,96823.0,96822.0,0.00498248]
[1732949625752,0.21612621,96823.0,96822.0,0.00098248]
[1732949625877,0.21612621,96823.0,96822.0,0.00498248]
[1732949626504,0.21712621,96823.0,96822.0,0.01398248]
[1732949626770,0.21712621,96823.0,96822.0,0.00498248]
[1732949627167,0.22772448,96823.0,96822.0,0.01398248]
[1732949627314,0.21812621,96823.0,96822.0,0.01398248]
[1732949628196,0.21812621,96823.0,96822.0,0.00998248]
[1732949628628,0.21812621,96823.0,96822.0,0.01398248]
[1732949628826,0.21812621,96823.0,96796.0,0.06667638]
[1732949628827,0.01,96815.0,96796.0,0.06667638]
[1732949629061,0.5414,96808.0,96796.0,0.06673612]
[1732949629304,0.103308,96797.0,96796.0,0.06673612]
[1732949629511,0.20615321,96797.0,96796.0,0.06673612]
[1732949631007,0.20615321,96797.0,96796.0,0.06773612]
[1732949631426,0.20615321,96797.0,96796.0,0.06673612]
[1732949631860,0.21515321,96797.0,96796.0,0.06773612]
[1732949632489,0.22415321,96797.0,96796.0,0.06773612]
[1732949637561,0.12084521,96797.0,96796.0,0.06773612]
[1732949637767,0.12084521,96797.0,96796.0,0.06860212]
[1732949638210,0.22415321,96797.0,96796.0,0.06860212]
[1732949638868,0.12084521,96797.0,96796.0,0.06860212]
[1732949640344,0.018,96797.0,96796.0,0.21931212]
[1732949644175,0.22415321,96797.0,96796.0,0.00192574]
[1732949650230,0.22588581,96797.0,96796.0,0.00192574]
[1732949652919,0.24658581,96797.0,96796.0,0.00192574]
[1732949653212,0.25619931,96797.0,96796.0,0.00192574]
[1732949653422,0.26730513,96797.0,96796.0,0.00192574]
[1732949653602,0.82408403,96797.0,96796.0,0.00192574]
[1732949653860,0.83806383,96797.0,96796.0,0.00092574]
[1732949654073,0.94089529,96797.0,96796.0,0.00092574]
[1732949654291,1.10889529,96797.0,96796.0,0.00192574]
[1732949654781,0.123314,96792.0,96791.0,0.0002]
[1732949654984,0.41775251,96792.0,96791.0,0.0003416]
[1732949655164,0.52058397,96792.0,96791.0,0.0003416]
[1732949656133,0.57215493,96792.0,96791.0,0.0003416]
[1732949656342,0.46932347,96792.0,96791.0,0.0003416]
[1732949656578,0.46932347,96792.0,96791.0,0.0013416]
[1732949656790,0.46932347,96792.0,96791.0,0.0003416]
[1732949657036,0.46932347,96792.0,96791.0,0.0013416]
[1732949657274,0.47032347,96792.0,96791.0,0.0013416]
[1732949657488,0.46070997,96792.0,96791.0,0.0013416]
[1732949657712,0.48170982,96792.0,96791.0,0.0038416]
[1732949658157,0.48070982,96792.0,96791.0,0.0038416]
[1732949659051,0.48070982,96792.0,96791.0,0.0028416]
[1732949659505,1.02210982,96792.0,96791.0,0.0028416]
[1732949659724,1.13455478,96792.0,96791.0,0.0038416]
[1732949659953,1.13455478,96792.0,96791.0,0.0028416]
[1732949660171,1.12594128,96792.0,96791.0,0.0028416]
[1732949660382,1.02310982,96792.0,96791.0,0.0028416]
[1732949661029,1.03269988,96792.0,96791.0,0.0028416]
[1732949662992,1.03269988,96792.0,96791.0,0.0037079]
[1732949663672,1.04356407,96792.0,96791.0,0.0037079]
[1732949663913,1.08265202,96792.0,96791.0,0.0037079]
[1732949664148,1.09798689,96792.0,96791.0,0.0037079]
[1732949664335,1.05889894,96792.0,96791.0,0.0037079]
[1732949665025,1.03356407,96792.0,96791.0,0.0037079]
[1732949665258,1.04356407,96792.0,96791.0,0.0037079]
[1732949665679,1.03269988,96792.0,96791.0,0.0037079]
[1732949665890,1.02169988,96792.0,96791.0,0.0037079]
[1732949666094,1.03169988,96792.0,96791.0,0.0037079]
[1732949666304,1.03269988,96792.0,96791.0,0.0037079]
[1732949667592,1.13553134,96792.0,96791.0,0.0037079]
[1732949668078,1.15086328,96792.0,96791.0,0.0037079]
[1732949668992,1.14986328,96792.0,96791.0,0.0037079]
[1732949669433,1.15086328,96792.0,96791.0,0.0037079]
[1732949672926,1.05889445,96792.0,96791.0,0.0037079]
[1732949673150,1.05889445,96792.0,96697.0,0.5014895]
[1732949673151,0.01,96755.0,96697.0,0.5014895]
[1732949673356,0.0464,96758.0,96691.0,0.0002]
[1732949673357,0.113374,96736.0,96691.0,0.0002]
[1732949673619,0.103384,96726.0,96714.0,0.0002787]
[1732949673822,0.103396,96715.0,96714.0,0.0002787]
[1732949674040,0.20624121,96715.0,96714.0,0.0002787]
[1732949674503,0.20624121,96715.0,96691.0,0.0002]
[1732949674504,0.103407,96705.0,96704.0,0.01009452]
[1732949674682,0.20625221,96705.0,96704.0,0.01009452]
[1732949674946,0.10284521,96705.0,96704.0,0.01009452]
[1732949675159,0.10284521,96705.0,96704.0,0.01069271]
[1732949675407,0.20625221,96705.0,96704.0,0.01069271]
[1732949676104,0.25704851,96705.0,96704.0,0.09175931]
[1732949676357,0.20625221,96705.0,96704.0,0.01155931]
[1732949677217,0.20625221,96705.0,96704.0,0.01955931]
[1732949677218,0.20725221,96705.0,96704.0,0.01955931]
[1732949677434,0.20625221,96705.0,96704.0,0.01155931]
[1732949678778,0.20625221,96705.0,96704.0,0.01455931]
[1732949678983,0.20625221,96705.0,96704.0,0.01155931]
[1732949679482,0.20625221,96705.0,96704.0,0.01455931]
[1732949679712,0.20625221,96705.0,96704.0,0.01155931]
[1732949680152,0.20625221,96705.0,96704.0,0.01455931]
[1732949680618,0.20625221,96705.0,96704.0,0.02074633]
[1732949680841,0.20625221,96705.0,96704.0,0.01774633]
[1732949681361,0.20625221,96705.0,96704.0,0.01274633]
[1732949682308,0.20625221,96705.0,96704.0,0.01674633]
[1732949682562,0.20625221,96705.0,96704.0,0.01274633]
[1732949682773,0.20625221,96705.0,96704.0,0.01674633]
[1732949683585,0.20625221,96705.0,96704.0,0.00655931]
[1732949684002,0.20725221,96705.0,96704.0,0.01155931]
[1732949684441,0.103413,96699.0,96698.0,0.04371059]
[1732949684646,0.103413,96699.0,96698.0,0.04377036]
[1732949684647,0.20625821,96699.0,96698.0,0.04377036]
[1732949684860,0.20625821,96699.0,96698.0,0.05627402]
[1732949686206,0.20725821,96699.0,96698.0,0.06427402]
[1732949686456,0.20625821,96699.0,96698.0,0.05627402]
[1732949686669,0.20725821,96699.0,96698.0,0.06527402]
[1732949686908,0.20725821,96699.0,96698.0,0.00627402]
[1732949688162,0.20725821,96699.0,96698.0,0.00714062]
[1732949688366,0.10384521,96699.0,96698.0,0.00714062]
[1732949688598,0.20725821,96699.0,96698.0,0.00714062]
[1732949688800,0.20825821,96699.0,96698.0,0.00914062]
[1732949690062,0.20625821,96699.0,96698.0,0.00714062]
[1732949690286,0.10284521,96699.0,96698.0,0.00714062]
[1732949690504,0.20725821,96699.0,96698.0,0.00914062]
[1732949691605,0.20725821,96699.0,96698.0,0.0028666]
[1732949691824,0.20625821,96699.0,96698.0,0.0008666]
[1732949692290,0.20725821,96699.0,96698.0,0.0078666]
[1732949692522,0.10384521,96699.0,96698.0,0.0078666]
[1732949692953,0.20725821,96699.0,96698.0,0.0078666]
[1732949693167,0.20725821,96699.0,96698.0,0.03163178]
[1732949693625,0.10384521,96699.0,96698.0,0.25934578]
[1732949695444,0.10284521,96699.0,96698.0,0.25234578]
[1732949695697,0.10384521,96699.0,96698.0,0.25934578]
[1732949695894,0.10484521,96699.0,96698.0,0.25934578]
[1732949696990,0.10484521,96699.0,96698.0,0.25234578]
[1732949696991,0.10284521,96699.0,96698.0,0.25234578]
[1732949697229,0.10384521,96699.0,96698.0,0.25234578]
[1732949697455,0.10484521,96699.0,96698.0,0.25934578]
[1732949698537,0.10284521,96699.0,96698.0,0.25234578]
[1732949698751,0.10384521,96699.0,96698.0,0.25234578]
[1732949698975,0.10484521,96699.0,96698.0,0.25934578]
[1732949699414,0.10557961,96699.0,96698.0,0.2355806]
[1732949699636,0.10657961,96699.0,96698.0,0.2355806]
[1732949699847,0.10557961,96699.0,96698.0,0.2285806]
[1732949700058,0.10657961,96699.0,96698.0,0.2355806]
[1732949700277,0.10557961,96699.0,96698.0,0.2355806]
[1732949700554,0.10557961,96699.0,96698.0,0.2285806]
[1732949701656,0.10457961,96699.0,96698.0,0.2285806]
[1732949701901,0.10557961,96699.0,96698.0,0.2355806]
[1732949702134,0.10657961,96699.0,96698.0,0.2355806]
[1732949702350,0.10557961,96699.0,96698.0,0.2285806]
[1732949702536,0.10457961,96699.0,96698.0,0.2285806]
[1732949702800,0.10557961,96699.0,96698.0,0.2285806]
[1732949703032,0.10557961,96699.0,96698.0,0.2355806]
[1732949703033,0.10657961,96699.0,96698.0,0.2355806]
[1732949703297,0.10457961,96699.0,96698.0,0.2285806]
[1732949703752,0.0037344,96699.0,96698.0,0.2355806]
[1732949704843,0.0027344,96699.0,96698.0,0.2355806]
[1732949705057,0.02085267,96718.0,96706.0,0.103405]
[1732949705284,0.10284521,96717.0,96707.0,0.0792]
[1732949705781,0.10284521,96717.0,96709.0,0.103402]
[1732949706241,0.10284521,96717.0,96707.0,0.0792]
[1732949706467,0.10384521,96717.0,96709.0,0.103402]
[1732949706703,0.10284521,96717.0,96708.0,0.0286016]
[1732949707409,0.10284521,96717.0,96713.0,0.103397]
[1732949707624,0.10284521,96717.0,96709.0,0.206805]
[1732949707832,0.10284521,96717.0,96708.0,0.1320046]
[1732949708057,0.10284521,96717.0,96709.0,0.01943526]
[1732949708330,0.10384521,96717.0,96709.0,0.01943526]
[1732949708562,0.10384521,96717.0,96709.0,0.01243526]
[1732949708563,0.10284521,96717.0,96709.0,0.01243526]
[1732949708779,0.10384521,96717.0,96713.0,0.008]
[1732949708990,0.10384521,96717.0,96709.0,0.01243526]
[1732949709208,0.10384521,96717.0,96711.0,0.1034]
[1732949709442,0.10484521,96717.0,96711.0,0.1034]
[1732949709696,0.10484521,96717.0,96710.0,0.1320026]
[1732949710144,0.10484521,96717.0,96710.0,0.0286016]
[1732949710604,0.10657961,96717.0,96710.0,0.0286016]
[1732949710853,0.10657961,96717.0,96711.0,0.01243526]
[1732949711778,0.10457961,96717.0,96711.0,0.01243526]
[1732949711980,0.10557961,96717.0,96711.0,0.01943526]
[1732949712473,0.10557961,96717.0,96711.0,0.01243526]
[1732949712709,0.10657961,96717.0,96711.0,0.01943526]
[1732949712935,0.10557961,96717.0,96712.0,0.01096085]
[1732949713152,0.10657961,96717.0,96712.0,0.01096085]
[1732949713432,0.10557961,96717.0,96712.0,0.01096085]
[1732949714778,0.10657961,96717.0,96712.0,0.01096085]
[1732949715195,0.103395,96716.0,96711.0,0.007]
[1732949715405,0.10284521,96715.0,96711.0,0.007]
[1732949715619,0.10284521,96715.0,96709.0,0.01097322]
[1732949716110,0.10284521,96715.0,96712.0,0.007]
[1732949716327,0.10284521,96715.0,96714.0,0.103397]
[1732949716544,0.10284521,96715.0,96713.0,0.03039832]
[1732949717233,0.10284521,96715.0,96714.0,0.103397]
[1732949717698,0.10284521,96715.0,96713.0,0.03039832]
[1732949717912,0.10284521,96715.0,96713.0,0.13379532]
[1732949718141,0.10384521,96715.0,96714.0,0.01063854]
[1732949718602,0.10584521,96715.0,96714.0,0.01763854]
[1732949719058,0.10284521,96715.0,96714.0,0.01063854]
[1732949719273,0.10484521,96715.0,96714.0,0.01063854]
[1732949719769,0.10384521,96715.0,96714.0,0.01063854]
[1732949720002,0.10484521,96715.0,96714.0,0.01763854]
[1732949720227,0.10584521,96715.0,96714.0,0.007]
[1732949722592,0.10757961,96715.0,96714.0,0.007]
[1732949722855,0.11826803,96715.0,96714.0,0.110397]
[1732949723070,0.11826803,96715.0,96714.0,0.007]
[1732949724324,0.11826803,96715.0,96714.0,0.110397]
[1732949724537,0.11826803,96715.0,96714.0,0.235797]
[1732949724769,0.10757961,96715.0,96714.0,0.235797]
[1732949726139,0.0047344,96715.0,96714.0,0.235797]
[1732949726783,0.0047344,96715.0,96714.0,0.225797]
[1732949728824,0.00959685,96750.0,96742.0,0.0798]
[1732949729042,0.206701,96758.0,96743.0,0.103366]
[1732949729043,0.10284521,96749.0,96743.0,0.103366]
[1732949729257,0.10284521,96749.0,96744.0,0.103364]
[1732949729680,0.10284521,96749.0,96742.0,0.0798]
[1732949729890,0.10284521,96749.0,96745.0,0.103364]
[1732949730060,0.10344041,96749.0,96745.0,0.103364]
[1732949730952,0.10344041,96749.0,96743.0,0.103366]
[1732949731129,0.10344041,96749.0,96742.0,0.0798]
[1732949731333,0.10344041,96749.0,96744.0,0.004]
[1732949731741,0.10344041,96749.0,96742.0,0.183166]
[1732949731946,0.10344041,96749.0,96742.0,0.0798]
[1732949732156,0.10444041,96749.0,96745.0,0.005]
[1732949732350,0.10444041,96749.0,96746.0,0.0192169]
[1732949732590,0.10544041,96749.0,96746.0,0.0192169]
[1732949732995,0.10444041,96749.0,96746.0,0.0192169]
[1732949734231,0.10444041,96749.0,96745.0,0.009]
[1732949734444,0.10544041,96749.0,96745.0,0.009]
[1732949734652,0.10344041,96749.0,96746.0,0.004]
[1732949735097,0.10344041,96749.0,96746.0,0.009]
[1732949735098,0.10444041,96749.0,96746.0,0.009]
[1732949735351,0.10444041,96749.0,96747.0,0.01000811]
[1732949735593,0.10544041,96749.0,96747.0,0.01000811]
[1732949735797,0.10717441,96749.0,96747.0,0.01000811]
[1732949736013,0.10517441,96749.0,96747.0,0.01000811]
[1732949736270,0.10617441,96749.0,96747.0,0.01000811]
[1732949736700,0.10617441,96749.0,96746.0,0.013]
[1732949736701,0.10617441,96749.0,96748.0,0.02174562]
[1732949736924,0.10617441,96749.0,96746.0,0.013]
[1732949737567,0.10517441,96749.0,96742.0,0.09108112]
[1732949737780,0.10517441,96749.0,96747.0,0.004]
[1732949737996,0.10617441,96749.0,96747.0,0.013]
[1732949738218,0.10517441,96749.0,96747.0,0.02074491]
[1732949738648,0.10617441,96749.0,96747.0,0.02074491]
[1732949739101,0.10706152,96749.0,96747.0,0.009]
[1732949739304,0.10706152,96749.0,96747.0,0.013]
[1732949741481,0.10284521,96748.0,96747.0,0.013]
[1732949741699,0.10338,96731.0,96717.0,0.080667]
[1732949741946,0.20622521,96730.0,96718.0,0.02294407]
[1732949742155,0.10284521,96730.0,96718.0,0.02294407]
[1732949742382,0.10284521,96730.0,96721.0,0.103389]
[1732949742599,0.10284521,96730.0,96722.0,0.103388]
[1732949742819,0.10284521,96730.0,96723.0,0.12147979]
[1732949743692,0.10284521,96730.0,96725.0,0.103385]
[1732949743898,0.02033724,96729.0,96723.0,0.12147979]
[1732949744117,0.10284521,96728.0,96723.0,0.01809279]
[1732949744324,0.10284521,96728.0,96725.0,0.103385]
[1732949744536,0.11353476,96728.0,96724.0,0.02294407]
[1732949745654,0.11353476,96728.0,96724.0,0.02394407]
[1732949745862,0.11453476,96728.0,96724.0,0.12733007]
[1732949746296,0.11453476,96728.0,96724.0,0.02394407]
[1732949746723,0.11453476,96728.0,96725.0,0.01809279]
[1732949747131,0.11353476,96728.0,96725.0,0.01809279]
[1732949747571,0.11453476,96728.0,96725.0,0.01809279]
[1732949748015,0.11553476,96728.0,96725.0,0.01909279]
[1732949748260,0.11553476,96728.0,96727.0,0.103383]
[1732949748471,0.11553476,96728.0,96727.0,0.20402707]
[1732949750036,0.11553476,96728.0,96727.0,0.10064407]
[1732949750284,0.11353476,96728.0,96727.0,0.0777]
[1732949750492,0.11453476,96728.0,96727.0,0.184083]
[1732949751124,0.11433617,96728.0,96727.0,0.184083]
[1732949752928,0.1138895,96728.0,96727.0,0.184083]
[1732949753570,0.1138895,96728.0,96727.0,0.0807]
[1732949753769,0.1138895,96728.0,96727.0,0.19535465]
[1732949754266,0.1138895,96728.0,96727.0,0.01427165]
[1732949754513,0.1138895,96728.0,96727.0,0.003]
[1732949754720,0.1138895,96728.0,96727.0,0.01107]
[1732949754903,0.1138895,96728.0,96727.0,0.114453]
[1732949756424,0.1138895,96728.0,96727.0,0.01107]
[1732949757330,0.1138895,96728.0,96727.0,0.114453]
[1732949757798,0.1138895,96728.0,96727.0,0.01107]
[1732949758905,0.1128895,96728.0,96727.0,0.00807]
[1732949759113,0.1138895,96728.0,96727.0,0.01107]
[1732949760439,0.1138895,96728.0,96727.0,0.01007]
[1732949760872,0.1138895,96728.0,96727.0,0.00907]
[1732949761098,0.1128895,96728.0,96727.0,0.00907]
[1732949761313,0.1138895,96728.0,96727.0,0.01007]
[1732949761572,0.1138895,96728.0,96727.0,0.00807]
[1732949761803,0.1138895,96728.0,96727.0,0.00907]
[1732949762025,0.1138895,96728.0,96727.0,0.01107]
[1732949762026,0.1148895,96728.0,96727.0,0.01107]
[1732949762246,0.1128895,96728.0,96727.0,0.00907]
[1732949763366,0.01068955,96728.0,96727.0,0.112453]
[1732949763587,0.01068955,96728.0,96727.0,0.24078283]
[1732949763806,0.01168955,96728.0,96727.0,0.240953]
[1732949764439,0.02062145,96743.0,96727.0,0.13757]
[1732949764679,0.10284521,96742.0,96732.0,0.206756]
[1732949764906,0.10284521,96742.0,96727.0,0.1295]
[1732949764907,0.10284521,96742.0,96733.0,0.00182966]
[1732949765125,0.10284521,96742.0,96735.0,0.20675]
[1732949765360,0.10284521,96742.0,96740.0,0.103369]
[1732949765565,0.10284521,96742.0,96736.0,0.206748]
[1732949765777,0.10284521,96742.0,96737.0,0.2351908]
[1732949765993,0.10284521,96742.0,96741.0,0.103368]
[1732949766929,0.02032358,96748.0,96739.0,0.10337]
[1732949767143,0.10284521,96746.0,96743.0,0.103366]
[1732949767328,0.10284521,96746.0,96738.0,0.206743]
[1732949767583,0.10284521,96746.0,96743.0,0.103366]
[1732949767809,0.10284521,96746.0,96743.0,0.103365]
[1732949768025,0.10284521,96746.0,96742.0,0.0777]
[1732949768957,0.10384521,96746.0,96743.0,0.004]
[1732949769387,0.103365,96744.0,96743.0,0.004]
[1732949769621,0.20621021,96744.0,96743.0,0.004]
[1732949770070,0.103371,96739.0,96726.0,0.0757]
[1732949770193,0.20621721,96738.0,96727.0,0.00765656]
[1732949770411,0.10284521,96738.0,96727.0,0.00765656]
[1732949770652,0.10253515,96738.0,96727.0,0.00765656]
[1732949770852,0.20590715,96738.0,96727.0,0.00765656]
[1732949771056,0.10253515,96738.0,96726.0,0.08662119]
[1732949771464,0.10353515,96738.0,96727.0,0.007]
[1732949771712,0.10353515,96738.0,96726.0,0.08662119]
[1732949771927,0.10253515,96738.0,96727.0,0.001]
[1732949773024,0.10253515,96738.0,96726.0,0.19000519]
[1732949773419,0.10253515,96738.0,96726.0,0.08762119]
[1732949773624,0.10353515,96738.0,96727.0,0.007]
[1732949773830,0.10353515,96738.0,96726.0,0.08762119]
[1732949774243,0.10453515,96738.0,96726.0,0.09562119]
[1732949774454,0.10353515,96738.0,96726.0,0.08662119]
[1732949774882,0.10453515,96738.0,96727.0,0.009]
[1732949775080,0.20590715,96738.0,96727.0,0.001]
[1732949775494,0.10353515,96738.0,96727.0,0.001]
[1732949775799,0.103382,96728.0,96727.0,0.001]
[1732949776015,0.20622721,96728.0,96727.0,0.001]
[1732949776254,0.103383,96727.0,96726.0,0.008]
[1732949776478,0.20622821,96727.0,96726.0,0.008]
[1732949777608,0.20622821,96727.0,96726.0,0.009]
[1732949777830,0.20622821,96727.0,96726.0,0.001]
[1732949778083,0.103384,96726.0,96725.0,0.0008656]
[1732949778309,0.20622921,96726.0,96725.0,0.0008656]
[1732949779394,0.20622921,96726.0,96725.0,0.0058656]
[1732949779608,0.20722921,96726.0,96725.0,0.0058656]
[1732949780274,0.20722921,96726.0,96725.0,0.0068656]
[1732949785340,0.25702921,96726.0,96725.0,0.0068656]
[1732949786237,0.25702921,96726.0,96725.0,0.0058656]
[1732949786646,0.25702921,96726.0,96725.0,0.0068656]
[1732949787142,0.25702921,96726.0,96725.0,0.0058656]
[1732949787348,0.25602921,96726.0,96725.0,0.0008656]
[1732949793086,0.25702921,96726.0,96725.0,0.0008656]
[1732949793539,0.25688942,96726.0,96725.0,0.0008656]
[1732949794258,0.25588942,96726.0,96725.0,0.0008656]
[1732949796476,0.25588942,96726.0,96703.0,0.0757]
[1732949796477,0.206773,96724.0,96703.0,0.0674326]
[1732949796686,0.10284521,96722.0,96704.0,0.00774338]
[1732949796867,0.10284521,96722.0,96703.0,0.05112198]
[1732949797102,0.103401,96711.0,96703.0,0.05112198]
[1732949797342,0.20624621,96710.0,96704.0,0.01562698]
[1732949797578,0.10284521,96710.0,96704.0,0.01562698]
[1732949797812,0.103404,96708.0,96703.0,0.05112198]
[1732949798017,0.10284521,96707.0,96703.0,0.05112198]
[1732949798453,0.10284521,96707.0,96703.0,0.05618177]
[1732949798659,0.10284521,96707.0,96704.0,0.00691589]
[1732949799518,0.10284521,96707.0,96704.0,0.00791589]
[1732949800152,0.10284521,96707.0,96704.0,0.00691589]
[1732949800376,0.10284521,96707.0,96704.0,0.00791589]
[1732949801272,0.10384521,96707.0,96704.0,0.01491589]
[1732949801536,0.10384521,96707.0,96705.0,0.01824878]
[1732949802860,0.10384521,96707.0,96705.0,0.01924878]
[1732949803063,0.10284521,96707.0,96705.0,0.001]
[1732949803270,0.10284521,96707.0,96705.0,0.008]
[1732949803488,0.10384521,96707.0,96705.0,0.008]
[1732949803699,0.20725021,96707.0,96705.0,0.008]
[1732949803901,0.10384521,96707.0,96705.0,0.008]
[1732949804133,0.20725021,96707.0,96706.0,0.00712534]
[1732949804939,0.10384521,96707.0,96706.0,0.00712534]
[1732949806486,0.10384521,96707.0,96706.0,0.00812534]
[1732949806698,0.10284521,96707.0,96706.0,0.00812534]
[1732949806902,0.10284521,96707.0,96706.0,0.01512534]
[1732949807083,0.10384521,96707.0,96706.0,0.01512534]
[1732949807744,0.20725021,96707.0,96706.0,0.01512534]
[1732949807966,0.10384521,96707.0,96706.0,0.01512534]
[1732949808383,0.10384521,96707.0,96706.0,0.24923134]
[1732949808384,0.001,96707.0,96706.0,0.24923134]
[1732949808595,0.206759,96731.0,96706.0,0.14669094]
[1732949808847,0.10284521,96730.0,96722.0,0.1307]
[1732949809067,0.20622521,96730.0,96722.0,0.1307]
[1732949809313,0.10284521,96730.0,96722.0,0.1307]
[1732949809526,0.02033414,96729.0,96722.0,0.1307]
[1732949809750,0.10284521,96728.0,96722.0,0.1307]
[1732949811088,0.10284521,96728.0,96722.0,0.1317]
[1732949811300,0.20622721,96728.0,96722.0,0.1317]
[1732949811738,0.10284521,96728.0,96722.0,0.1317]
[1732949812366,0.20622821,96728.0,96722.0,0.1317]
[1732949812807,0.103388,96723.0,96722.0,0.082]
[1732949813053,0.20623321,96723.0,96722.0,0.0902]
[1732949814126,0.10284521,96723.0,96722.0,0.0892]
[1732949814364,0.10284521,96723.0,96722.0,0.0922]
[1732949814565,0.10284521,96723.0,96722.0,0.0932]
[1732949817663,0.20623321,96723.0,96722.0,0.0932]
[1732949817876,0.10284521,96723.0,96722.0,0.0932]
[1732949818096,0.20623321,96723.0,96722.0,0.0932]
[1732949818313,0.10284521,96723.0,96722.0,0.0932]
[1732949823480,0.02033414,96729.0,96728.0,0.103382]
[1732949823692,0.12317935,96729.0,96724.0,0.206773]
[1732949823905,0.12317935,96729.0,96723.0,0.1279]
[1732949823906,0.10284521,96728.0,96725.0,0.206771]
[1732949824566,0.10284521,96728.0,96727.0,0.103383]
[1732949825188,0.10284521,96728.0,96723.0,0.1279]
[1732949825189,0.10284521,96728.0,96724.0,0.206773]
[1732949825431,0.10284521,96728.0,96726.0,0.103384]
[1732949826030,0.10284521,96728.0,96723.0,0.1279]
[1732949826031,0.20622721,96728.0,96723.0,0.1279]
[1732949826356,0.10284521,96728.0,96723.0,0.1279]
[1732949826536,0.10284521,96728.0,96724.0,0.001]
[1732949827006,0.10284521,96728.0,96723.0,0.1279]
[1732949827007,0.103386,96724.0,96723.0,0.0822]
[1732949827217,0.20623121,96724.0,96723.0,0.0822]
[1732949828126,0.10284521,96724.0,96723.0,0.0822]
[1732949828348,0.10284521,96724.0,96723.0,0.0852]
[1732949828557,0.10284521,96724.0,96723.0,0.1040592]
[1732949829281,0.10284521,96724.0,96723.0,0.1050592]
[1732949830127,0.20623121,96724.0,96723.0,0.1050592]
[1732949830335,0.20623121,96724.0,96723.0,0.0862]
[1732949831299,0.20623121,96724.0,96723.0,0.004]
[1732949832735,0.20623121,96724.0,96723.0,0.0853]
[1732949835003,0.20623121,96724.0,96723.0,0.004]
[1732949844567,0.10284521,96724.0,96709.0,0.12036075]